bitfinex-derivatives/quotes_SOLF0:USTF0_20250703
["timestamp","ask_amount","ask_price","bid_price","bid_amount"]
[1751544570034,6.4722,154.46,154.44,189.48]
[1751544572039,6.4722,154.46,154.44,195.9528]
[1751544573230,6.4722,154.46,154.44,189.48]
[1751544574337,6.4718,154.47,154.44,189.48]
[1751544574637,3.68520965,154.5,154.44,189.48]
[1751544574939,6.472,154.47,154.44,195.9526]
[1751544577746,6.472,154.47,154.44,198.31239976]
[1751544579744,6.4722,154.46,154.44,191.83979976]
[1751544579945,2.35979976,154.48,154.44,191.83979976]
[1751544580646,6.4719,154.47,154.44,198.31249976]
[1751544580846,2.35979976,154.48,154.44,198.31249976]
[1751544581547,6.4717,154.47,154.44,198.31249976]
[1751544581750,2.35979976,154.48,154.44,198.31249976]
[1751544582448,6.4725,154.45,154.44,189.48]
[1751544583351,6.4725,154.45,154.43,8.83279976]
[1751544585949,2.35979976,154.48,154.44,8.83269976]
[1751544586155,2.35979976,154.49,154.45,2.35979976]
[1751544586356,5.43283117,154.48,154.45,2.35979976]
[1751544586557,6.4715,154.48,154.45,8.83199976]
[1751544587056,6.4717,154.47,154.45,8.83199976]
[1751544587551,8.83119976,154.48,154.46,6.472]
[1751544590360,5.43554854,154.47,154.46,6.472]
[1751544590660,8.83119976,154.48,154.46,6.472]
[1751544590860,5.43554854,154.47,154.46,6.472]
[1751544591362,8.83119976,154.48,154.46,6.472]
[1751544592156,8.83069976,154.49,154.46,8.83179976]
[1751544592358,5.44100474,154.48,154.46,8.83179976]
[1751544592559,8.83069976,154.49,154.46,8.83179976]
[1751544592757,5.44225303,154.48,154.46,2.35979976]
[1751544593060,2.35979976,154.51,154.47,2.35979976]
[1751544593359,5.44258415,154.5,154.47,2.35979976]
[1751544593666,5.44258415,154.49,154.47,2.35979976]
[1751544593860,2.35979976,154.51,154.47,2.35979976]
[1751544594158,5.44272052,154.5,154.47,2.35979976]
[1751544594366,5.44272052,154.49,154.47,2.35979976]
[1751544594664,2.35979976,154.51,154.47,2.35979976]
[1751544594966,5.44316498,154.5,154.47,2.35979976]
[1751544595159,5.44316498,154.49,154.47,8.83119976]
[1751544595465,6.4707,154.5,154.47,8.83119976]
[1751544595761,5.44354113,154.49,154.47,8.83119976]
[1751544595961,6.4707,154.5,154.47,8.83119976]
[1751544596166,5.44354113,154.49,154.47,8.83119976]
[1751544596358,6.4707,154.5,154.47,8.83119976]
[1751544596558,5.4527122,154.49,154.47,8.83119976]
[1751544596785,6.4707,154.5,154.47,8.83119976]
[1751544596973,5.4527122,154.49,154.48,6.4712]
[1751544597176,2.35979976,154.53,154.48,8.83099976]
[1751544597366,2.35979976,154.51,154.48,2.35979976]
[1751544597562,11.92387463,154.5,154.48,2.35979976]
[1751544597759,6.4706,154.5,154.48,2.35979976]
[1751544598362,5.45128437,154.49,154.48,2.35979976]
[1751544598662,5.45128437,154.49,154.47,6.4714]
[1751544598663,7.81108413,154.49,154.45,4.58589976]
[1751544598863,5.45090528,154.48,154.45,49.54589976]
[1751544599067,2.35979976,154.49,154.45,49.54589976]
[1751544599363,11.92230378,154.48,154.45,56.01809976]
[1751544599668,6.4719,154.47,154.45,49.54589976]
[1751544600061,6.4719,154.47,154.45,47.31979976]
[1751544600774,6.4719,154.47,154.45,53.79229976]
[1751544600963,6.4714,154.48,154.45,53.79229976]
[1751544601360,8.83119976,154.48,154.45,53.79229976]
[1751544601757,8.83119976,154.48,154.45,47.31979976]
[1751544601758,6.4719,154.47,154.45,47.31979976]
[1751544601963,6.02400462,154.51,154.45,47.31979976]
[1751544602163,5.44903788,154.5,154.45,47.31979976]
[1751544602464,7.80883764,154.49,154.46,6.472]
[1751544602665,5.44903788,154.48,154.46,6.472]
[1751544602967,2.35979976,154.49,154.46,6.472]
[1751544603164,11.9214727,154.48,154.45,53.79209976]
[1751544603470,6.4713,154.48,154.45,53.79209976]
[1751544603868,8.83079976,154.49,154.46,6.472]
[1751544604069,5.45048229,154.48,154.46,6.472]
[1751544604375,2.35979976,154.49,154.46,6.472]
[1751544604670,5.45044261,154.48,154.46,6.472]
[1751544604869,2.35979976,154.49,154.46,6.472]
[1751544605067,5.45044261,154.48,154.46,6.472]
[1751544605266,2.35979976,154.49,154.46,6.472]
[1751544605568,6.4713,154.48,154.46,6.472]
[1751544607872,6.4713,154.48,154.45,53.79209976]
[1751544608368,6.4713,154.48,154.45,51.4323]
[1751544608563,6.4713,154.48,154.45,53.79209976]
[1751544612573,6.4713,154.48,154.45,51.4323]
[1751544612870,6.4713,154.48,154.45,53.79209976]
[1751544614567,6.4713,154.48,154.45,51.4323]
[1751544614778,6.4713,154.48,154.45,53.79209976]
[1751544617984,6.4716,154.47,154.45,53.79209976]
[1751544618275,6.4716,154.47,154.45,47.31979976]
[1751544618471,6.4716,154.47,154.45,44.96]
[1751544618779,6.4721,154.46,154.45,44.96]
[1751544619181,2.35979976,154.48,154.45,51.4324]
[1751544619377,5.4537547,154.47,154.45,44.96]
[1751544619572,2.35979976,154.48,154.45,44.96]
[1751544619772,5.45389527,154.47,154.45,44.96]
[1751544620067,2.35979976,154.48,154.45,44.96]
[1751544620270,11.92569527,154.47,154.45,44.96]
[1751544620470,6.4718,154.47,154.45,44.96]
[1751544622681,6.4718,154.47,154.45,47.31979976]
[1751544623884,6.4718,154.47,154.45,44.96]
[1751544628495,6.4718,154.47,154.45,51.4324]
[1751544628882,2.35979976,154.46,154.38,571.35102362]
[1751544629089,7.81154508,154.45,154.42,239.9336]
[1751544629281,2.35979976,154.45,154.42,239.9336]
[1751544629683,2.35979976,154.45,154.42,51.4136]
[1751544629981,2.35979976,154.45,154.43,188.52]
[1751544630690,6.4729,154.44,154.43,188.52]
[1751544631589,6.4729,154.44,154.42,6.4736]
[1751544631791,7.80422226,154.43,154.41,44.94]
[1751544631983,7.80422226,154.42,154.41,233.46]
[1751544632180,14.27792226,154.42,154.41,44.94]
[1751544632586,7.80422226,154.42,154.39,188.52]
[1751544632786,2.35979976,154.4,154.39,188.52]
[1751544634186,2.35979976,154.4,154.38,565.7152]
[1751544634187,2.35979976,154.4,154.38,747.76]
[1751544634784,8.83459976,154.4,154.38,559.24]
[1751544634980,8.83459976,154.4,154.38,747.76]
[1751544635883,6.475,154.39,154.38,559.24]
[1751544636084,6.475,154.39,154.38,747.76]
[1751544636488,8.83449976,154.4,154.38,747.76]
[1751544637489,6.4747,154.4,154.38,747.76]
[1751544637688,6.4747,154.4,154.38,559.24]
[1751544637892,6.4747,154.4,154.39,188.52]
[1751544640590,2.35979976,154.41,154.39,188.52]
[1751544641092,6.4746,154.4,154.39,188.52]
[1751544643197,2.2769,154.45,154.39,194.9948]
[1751544643394,2.35979976,154.42,154.39,194.9948]
[1751544643694,8.83389976,154.42,154.39,194.9948]
[1751544645493,6.4742,154.41,154.39,194.9948]
[1751544646693,6.4742,154.41,154.39,188.52]
[1751544647995,2.2769,154.45,154.39,194.9949]
[1751544648195,2.35979976,154.43,154.4,2.35979976]
[1751544648394,2.35979976,154.44,154.41,188.52]
[1751544648591,6.4735,154.43,154.41,188.52]
[1751544650400,8.83329976,154.43,154.41,188.52]
[1751544650699,6.4737,154.42,154.41,188.52]
[1751544653401,8.83329976,154.43,154.41,188.52]
[1751544654601,8.83329976,154.43,154.41,194.9941]
[1751544654795,6.4735,154.43,154.41,194.9941]
[1751544654996,8.83329976,154.43,154.41,194.9941]
[1751544656094,8.83329976,154.43,154.41,188.52]
[1751544658404,6.4737,154.42,154.41,188.52]
[1751544661907,122.30838755,154.47,154.41,188.52]
[1751544661908,122.30838755,154.47,154.41,194.9939]
[1751544662099,2.35979976,154.44,154.41,188.52]
[1751544662299,2.35979976,154.43,154.41,188.52]
[1751544662500,8.83339976,154.43,154.41,188.52]
[1751544663211,2.35979976,154.44,154.41,188.52]
[1751544663809,2.35979976,154.44,154.41,194.9939]
[1751544663810,8.83299976,154.44,154.41,194.9939]
[1751544664302,6.4736,154.43,154.41,188.52]
[1751544665413,6.4736,154.43,154.41,194.9941]
[1751544668403,6.4736,154.43,154.41,188.52]
[1751544669509,6.4736,154.43,154.41,194.9941]
[1751544674412,8.83289976,154.44,154.42,6.4737]
[1751544674616,8.83289976,154.44,154.41,188.52]
[1751544675117,120.14598755,154.47,154.43,2.35979976]
[1751544675315,5.42883394,154.46,154.44,188.36]
[1751544675615,5.42883394,154.45,154.44,188.36]
[1751544677521,5.42883394,154.45,154.44,194.8329]
[1751544678521,6.4724,154.46,154.44,194.8329]
[1751544681629,6.4724,154.46,154.44,188.36]
[1751544682331,8.83219976,154.46,154.44,188.36]
[1751544682723,6.4725,154.45,154.44,188.36]
[1751544684832,2.35979976,154.45,154.43,188.3]
[1751544685029,2.35979976,154.44,154.43,188.3]
[1751544685434,8.83269976,154.44,154.43,188.3]
[1751544688834,6.4729,154.44,154.43,188.3]
[1751544689031,8.83269976,154.44,154.43,188.3]
[1751544689630,7.78181762,154.44,154.42,188.28]
[1751544689834,2.35979976,154.44,154.42,188.28]
[1751544690234,6.4735,154.43,154.42,188.28]
[1751544690634,6.4735,154.43,154.41,51.3339]
[1751544690835,6.4731,154.44,154.42,194.7337]
[1751544691234,8.37429898,154.49,154.42,194.7337]
[1751544691424,2.35979976,154.45,154.42,194.7337]
[1751544691836,8.83249976,154.45,154.42,194.7337]
[1751544692334,8.83249976,154.45,154.43,6.4733]
[1751544692533,8.83249976,154.45,154.42,188.26]
[1751544692735,8.83249976,154.45,154.42,197.09329976]
[1751544695933,6.4727,154.45,154.42,197.09329976]
[1751544696138,8.83249976,154.45,154.42,197.09329976]
[1751544696536,6.4727,154.45,154.42,197.09329976]
[1751544696735,8.83249976,154.45,154.42,197.09329976]
[1751544697231,6.4727,154.45,154.42,197.09329976]
[1751544698435,8.83199976,154.46,154.43,6.4732]
[1751544698636,5.42083552,154.45,154.43,6.4732]
[1751544698835,8.83199976,154.46,154.43,6.4732]
[1751544699037,5.42083552,154.45,154.43,6.4732]
[1751544699233,8.83199976,154.46,154.43,6.4732]
[1751544699433,5.42083552,154.45,154.43,6.4732]
[1751544699627,8.83199976,154.46,154.43,6.4732]
[1751544699828,5.42118258,154.45,154.43,6.4732]
[1751544700037,8.83199976,154.46,154.43,6.4732]
[1751544700238,5.42118258,154.45,154.43,6.4732]
[1751544700438,8.83199976,154.46,154.43,6.4732]
[1751544700638,5.42158238,154.45,154.43,6.4732]
[1751544700840,8.83199976,154.46,154.43,6.4732]
[1751544701038,5.42599244,154.45,154.43,6.4732]
[1751544701239,8.83199976,154.46,154.43,6.4732]
[1751544701438,5.4260633,154.45,154.43,6.4732]
[1751544701636,8.83199976,154.46,154.43,6.4732]
[1751544701835,5.42653547,154.45,154.43,6.4732]
[1751544702036,6.4725,154.45,154.42,197.09329976]
[1751544703636,6.4725,154.45,154.42,194.7335]
[1751544703839,8.83269976,154.44,154.42,188.26]
[1751544704741,6.4729,154.44,154.42,188.26]
[1751544705441,6.4729,154.44,154.42,194.7337]
[1751544706438,6.03779898,154.48,154.43,6.473]
[1751544706643,5.4246475,154.47,154.45,2.35979976]
[1751544706942,8.39759874,154.49,154.46,2.35979976]
[1751544707143,5.42565172,154.48,154.46,2.35979976]
[1751544707336,5.42565172,154.47,154.45,190.53979976]
[1751544707537,2.35979976,154.49,154.45,190.53979976]
[1751544707844,11.89728947,154.48,154.45,197.01219976]
[1751544708038,5.42578947,154.47,154.45,197.01219976]
[1751544708338,8.83129976,154.48,154.45,197.01219976]
[1751544708542,5.42540146,154.47,154.45,197.01219976]
[1751544708740,8.83129976,154.48,154.45,197.01219976]
[1751544708942,5.42540146,154.47,154.45,197.01219976]
[1751544709136,8.83129976,154.48,154.45,194.6524]
[1751544709332,5.42540146,154.47,154.45,194.6524]
[1751544709532,8.83129976,154.48,154.45,194.6524]
[1751544709731,5.42505704,154.47,154.45,194.6524]
[1751544709942,8.83129976,154.48,154.45,194.6524]
[1751544710142,5.42505704,154.47,154.45,194.6524]
[1751544710343,6.4718,154.47,154.45,188.18]
[1751544712246,6.4718,154.47,154.45,194.6524]
[1751544712546,8.83119976,154.48,154.45,194.6524]
[1751544712747,5.42451897,154.47,154.45,194.6524]
[1751544712947,8.83119976,154.48,154.45,194.6524]
[1751544713149,5.43320534,154.47,154.45,194.6524]
[1751544713345,8.83119976,154.48,154.45,194.6524]
[1751544713542,5.43326643,154.47,154.45,194.6524]
[1751544713739,8.83119976,154.48,154.45,194.6524]
[1751544713944,5.43326643,154.47,154.45,194.6524]
[1751544714145,8.83119976,154.48,154.45,194.6524]
[1751544714340,5.43326612,154.47,154.46,6.4721]
[1751544716441,5.43326612,154.47,154.45,194.6523]
[1751544716646,6.4713,154.48,154.45,197.01209976]
[1751544717546,8.83109976,154.48,154.45,197.01209976]
[1751544718752,6.4713,154.48,154.45,197.01209976]
[1751544718947,8.83139976,154.47,154.45,188.18]
[1751544719150,2.35979976,154.46,154.42,4.3854]
[1751544719347,2.35979976,154.44,154.42,2.1943]
[1751544719548,2.35979976,154.44,154.42,8.668]
[1751544719751,2.35979976,154.44,154.42,196.788]
[1751544719941,2.35979976,154.44,154.42,8.668]
[1751544720150,2.35979976,154.44,154.42,194.5937]
[1751544720451,2.35979976,154.43,154.42,188.12]
[1751544720653,2.35979976,154.43,154.41,232.98]
[1751544720845,8.83289976,154.44,154.41,232.98]
[1751544721049,8.83289976,154.44,154.41,235.33979976]
[1751544721553,8.83289976,154.44,154.42,6.4737]
[1751544722653,8.83289976,154.44,154.41,241.81369976]
[1751544723254,2.35979976,154.44,154.42,6.4737]
[1751544723655,2.35979976,154.43,154.41,44.86]
[1751544723856,8.83349976,154.42,154.41,44.86]
[1751544724748,14.24537541,154.42,154.41,44.86]
[1751544725256,14.24537541,154.42,154.39,6.4748]
[1751544725257,7.77167541,154.42,154.38,559.24]
[1751544725552,2.35979976,154.39,154.38,559.24]
[1751544726354,2.35979976,154.4,154.38,559.24]
[1751544726756,2.35979976,154.4,154.38,565.7154]
[1751544726951,2.35979976,154.4,154.38,753.8354]
[1751544727153,8.83439976,154.4,154.38,747.36]
[1751544727450,2.35979976,154.4,154.38,747.36]
[1751544727654,2.35979976,154.39,154.34,44.76]
[1751544727855,2.35979976,154.37,154.35,6.4765]
[1751544728046,2.35979976,154.36,154.34,44.76]
[1751544728246,2.35979976,154.35,154.3,604.06]
[1751544728450,8.83799976,154.32,154.29,6.479]
[1751544728649,2.35979976,154.31,154.29,188.12]
[1751544728854,2.35979976,154.32,154.29,188.12]
[1751544729050,2.35979976,154.3,154.28,44.76]
[1751544729648,2.35979976,154.31,154.28,51.2395]
[1751544729853,2.35979976,154.32,154.29,2.35979976]
[1751544730254,2.35979976,154.31,154.28,51.2394]
[1751544730455,2.35979976,154.31,154.28,44.76]
[1751544730657,2.35979976,154.31,154.28,47.11979976]
[1751544731254,2.35979976,154.31,154.28,53.59929976]
[1751544731857,6.4782,154.32,154.28,51.2395]
[1751544732065,10.17265304,154.33,154.29,6.4791]
[1751544732358,3.69505304,154.33,154.28,44.76]
[1751544732756,3.69505304,154.33,154.3,6.4785]
[1751544732959,3.69505304,154.33,154.3,194.6385]
[1751544733860,10.17265304,154.33,154.3,194.6385]
[1751544734056,3.69505304,154.33,154.3,194.6385]
[1751544734360,4.5558,154.39,154.3,191.85505304]
[1751544734554,3.69505304,154.38,154.3,191.85505304]
[1751544734955,6.4763,154.36,154.32,6.4778]
[1751544735151,6.4763,154.36,154.33,188.18]
[1751544735364,3.69505304,154.38,154.33,188.18]
[1751544735661,6.4759,154.37,154.33,194.6571]
[1751544736162,10.17065304,154.38,154.33,188.18]
[1751544736756,10.17065304,154.38,154.34,6.4768]
[1751544737157,6.4759,154.37,154.33,194.6574]
[1751544739964,10.17075304,154.38,154.34,6.477]
[1751544741765,3.69505304,154.38,154.35,6.4766]
[1751544741968,6.4752,154.39,154.35,6.4766]
[1751544742365,6.4754,154.38,154.34,6.4769]
[1751544743061,3.69505304,154.36,154.33,44.78]
[1751544743864,3.69505304,154.37,154.33,51.2575]
[1751544745166,6.4765,154.36,154.33,51.2575]
[1751544745467,3.69505304,154.37,154.33,51.2575]
[1751544745862,10.17115304,154.37,154.33,51.2575]
[1751544746865,6.4763,154.36,154.33,51.2575]
[1751544747766,6.4767,154.35,154.33,44.78]
[1751544749070,6.4764,154.36,154.33,44.78]
[1751544750168,6.4767,154.35,154.33,44.78]
[1751544750466,6.4764,154.36,154.33,51.2574]
[1751544750670,3.69505304,154.37,154.33,44.78]
[1751544751066,6.4763,154.36,154.33,44.78]
[1751544751772,6.4767,154.35,154.33,44.78]
[1751544753768,6.4764,154.36,154.33,51.2574]
[1751544754673,6.4767,154.35,154.33,44.78]
[1751544755473,6.4765,154.36,154.33,51.2575]
[1751544759376,6.4765,154.36,154.34,6.477]
[1751544759976,6.4765,154.36,154.33,51.2573]
[1751544760576,6.4767,154.35,154.33,51.2573]
[1751544761378,6.4765,154.36,154.33,51.2573]
[1751544764968,6.4761,154.37,154.33,44.78]
[1751544765173,3.69505304,154.4,154.33,44.78]
[1751544765373,5.31160122,154.39,154.33,44.78]
[1751544765579,11.78720122,154.38,154.35,6.4766]
[1751544765876,3.69505304,154.4,154.35,6.4766]
[1751544766076,9.00732112,154.4,154.35,6.4766]
[1751544766378,5.31226808,154.39,154.35,6.4766]
[1751544766571,5.31226808,154.39,154.34,6.4769]
[1751544766973,6.476,154.37,154.34,6.4769]
[1751544768184,6.476,154.37,154.35,6.4766]
[1751544769475,6.476,154.37,154.34,6.4769]
[1751544770981,3.69190853,154.39,154.33,44.78]
[1751544770982,6.4764,154.36,154.33,51.2573]
[1751544771878,6.4769,154.35,154.33,44.78]
[1751544772084,3.69190853,154.37,154.33,44.78]
[1751544772381,5.33916469,154.36,154.33,44.78]
[1751544772582,6.4765,154.36,154.33,51.2575]
[1751544772984,6.4765,154.36,154.34,6.477]
[1751544773584,6.4765,154.36,154.33,51.2573]
[1751544775283,6.476,154.37,154.34,6.477]
[1751544775480,5.34237219,154.36,154.34,6.477]
[1751544775685,3.69190853,154.38,154.33,44.78]
[1751544775985,5.33802928,154.37,154.33,44.78]
[1751544776183,11.81452928,154.36,154.33,51.2573]
[1751544776381,3.69190853,154.38,154.33,51.2573]
[1751544776683,5.33809782,154.37,154.33,51.2573]
[1751544776880,11.81459782,154.36,154.33,51.2573]
[1751544777079,6.4765,154.36,154.33,51.2573]
[1751544777785,5.34032661,154.35,154.33,51.2573]
[1751544778083,6.4765,154.36,154.33,51.2573]
[1751544778284,5.34396232,154.35,154.33,51.2573]
[1751544778482,6.4765,154.36,154.33,51.2573]
[1751544778684,5.34517005,154.35,154.33,51.2573]
[1751544778886,6.4765,154.36,154.33,51.2573]
[1751544779186,5.34517005,154.35,154.33,51.2573]
[1751544779387,6.4765,154.36,154.33,51.2573]
[1751544779585,5.3466991,154.35,154.33,51.2573]
[1751544779785,6.4765,154.36,154.33,51.2573]
[1751544779987,5.3466991,154.35,154.33,51.2573]
[1751544780186,6.4765,154.36,154.33,51.2573]
[1751544780483,5.34732524,154.35,154.33,51.2573]
[1751544780686,6.4765,154.36,154.33,51.2573]
[1751544780882,5.34732524,154.35,154.33,51.2573]
[1751544781074,6.4767,154.35,154.33,51.2573]
[1751544781279,3.69190853,154.37,154.33,51.2573]
[1751544781474,5.3473252,154.36,154.33,51.2573]
[1751544781675,5.3473252,154.35,154.33,51.2573]
[1751544781877,6.4764,154.36,154.33,51.2573]
[1751544782078,5.34730938,154.35,154.33,51.2573]
[1751544782278,6.4764,154.36,154.33,51.2573]
[1751544782485,5.34733815,154.35,154.33,51.2573]
[1751544782691,6.4764,154.36,154.33,51.2573]
[1751544782889,5.34733815,154.35,154.33,51.2573]
[1751544783087,6.4767,154.35,154.33,51.2573]
[1751544783893,6.4765,154.36,154.33,51.2573]
[1751544784090,5.34736859,154.35,154.33,44.78]
[1751544784295,3.69190853,154.37,154.33,44.78]
[1751544784492,6.4767,154.35,154.33,44.78]
[1751544785190,5.3470997,154.34,154.33,51.2575]
[1751544786890,5.3470997,154.34,154.33,6.4775]
[1751544787297,5.3470997,154.34,154.32,13.39058805]
[1751544787499,8.84018805,154.35,154.32,13.39058805]
[1751544787701,5.3482985,154.34,154.32,13.39058805]
[1751544787994,8.84058805,154.34,154.32,4.5494]
[1751544788196,7.71130754,154.33,154.29,232.76]
[1751544788500,2.36348805,154.32,154.29,232.76]
[1751544788695,2.36348805,154.32,154.3,6.4786]
[1751544789497,2.36348805,154.33,154.31,6.4783]
[1751544789995,6.4773,154.34,154.31,6.4783]
[1751544790199,5.34276502,154.33,154.31,6.4783]
[1751544790396,5.34276502,154.32,154.31,6.4783]
[1751544791298,6.4776,154.33,154.3,194.5185]
[1751544791487,6.4776,154.33,154.3,188.04]
[1751544791688,3.69403977,154.34,154.3,188.04]
[1751544791900,5.33979409,154.33,154.3,188.04]
[1751544792101,3.69403977,154.34,154.3,188.04]
[1751544792398,5.33979409,154.33,154.31,6.4783]
[1751544792697,10.17133977,154.34,154.31,6.4783]
[1751544792900,5.3390631,154.33,154.31,6.4783]
[1751544793100,10.17133977,154.34,154.31,6.4783]
[1751544793301,5.339063,154.33,154.31,6.4783]
[1751544793501,10.17133977,154.34,154.31,6.4783]
[1751544793696,5.33841539,154.33,154.31,6.4783]
[1751544793896,6.4773,154.34,154.31,6.4783]
[1751544794097,5.33852143,154.33,154.31,6.4783]
[1751544794297,6.4773,154.34,154.31,6.4783]
[1751544794499,5.33795571,154.33,154.31,6.4783]
[1751544794696,6.4773,154.34,154.31,6.4783]
[1751544794893,5.33757806,154.33,154.31,6.4783]
[1751544795098,6.4773,154.34,154.31,6.4783]
[1751544795295,5.33757806,154.33,154.31,6.4783]
[1751544795504,6.4773,154.34,154.31,6.4783]
[1751544795704,5.33706633,154.33,154.31,6.4783]
[1751544796002,6.4773,154.34,154.31,6.4783]
[1751544796203,5.32837947,154.33,154.31,6.4783]
[1751544796407,6.4773,154.34,154.31,6.4783]
[1751544796705,5.3291868,154.33,154.31,6.4783]
[1751544796903,6.4773,154.34,154.31,6.4783]
[1751544797106,5.32917103,154.33,154.31,6.4783]
[1751544797406,6.4773,154.34,154.31,6.4783]
[1751544797696,5.32912138,154.33,154.3,188.04]
[1751544797906,3.69403977,154.36,154.3,188.04]
[1751544798205,5.32912138,154.35,154.31,6.4781]
[1751544798406,11.80622138,154.34,154.31,6.4781]
[1751544798704,5.32912138,154.33,154.31,6.4781]
[1751544799003,6.4771,154.34,154.31,6.4781]
[1751544799205,5.32874486,154.33,154.31,6.4781]
[1751544799504,6.4771,154.34,154.31,6.4781]
[1751544799805,5.32838404,154.33,154.31,6.4781]
[1751544800003,6.4771,154.34,154.31,6.4781]
[1751544800208,5.32838404,154.33,154.31,6.4781]
[1751544800404,6.4771,154.34,154.31,6.4781]
[1751544800599,5.32807241,154.33,154.31,6.4781]
[1751544800801,6.4771,154.34,154.31,6.4781]
[1751544801002,5.32807241,154.33,154.31,6.4781]
[1751544801208,6.4771,154.34,154.31,6.4781]
[1751544801404,5.32789777,154.33,154.31,6.4781]
[1751544801700,6.4771,154.34,154.31,6.4781]
[1751544801902,5.32779147,154.33,154.31,6.4781]
[1751544802098,6.4771,154.34,154.31,6.4781]
[1751544802299,5.32779147,154.33,154.31,6.4781]
[1751544802508,6.4771,154.34,154.31,6.4781]
[1751544802698,5.32753901,154.33,154.31,6.4781]
[1751544802897,6.4771,154.34,154.32,6.4779]
[1751544803100,5.32753536,154.33,154.32,6.4779]
[1751544803407,5.32753536,154.33,154.31,6.4782]
[1751544803609,6.4774,154.34,154.31,6.4782]
[1751544803810,5.32780835,154.33,154.31,6.4782]
[1751544804106,3.69403977,154.36,154.3,188.04]
[1751544804407,5.32975392,154.35,154.31,3.69403977]
[1751544804598,6.4767,154.35,154.32,6.4776]
[1751544807010,6.4767,154.35,154.32,51.1976]
[1751544808710,6.4767,154.35,154.33,6.4775]
[1751544810309,6.4767,154.35,154.32,51.1977]
[1751544810908,6.4767,154.35,154.33,6.4775]
[1751544811310,6.4765,154.36,154.33,6.4775]
[1751544811614,9.72632879,154.39,154.34,194.4171]
[1751544811802,2.3628598,154.37,154.34,196.7799598]
[1751544812007,5.34289869,154.36,154.34,196.7799598]
[1751544812203,2.3628598,154.37,154.35,6.4767]
[1751544812408,8.8386598,154.38,154.35,6.4767]
[1751544813412,2.3628598,154.39,154.36,2.3628598]
[1751544813716,2.3628598,154.39,154.34,187.94]
[1751544813717,6.4748,154.4,154.37,2.3628598]
[1751544813911,5.34300708,154.39,154.37,2.3628598]
[1751544814116,8.8376598,154.4,154.37,8.8383598]
[1751544814417,8.8376598,154.4,154.37,53.5583598]
[1751544814618,6.4748,154.4,154.37,53.5583598]
[1751544814815,8.8376598,154.4,154.37,53.5583598]
[1751544815916,6.4751,154.39,154.37,51.1955]
[1751544816918,6.475,154.4,154.37,51.1955]
[1751544817519,6.4751,154.39,154.37,51.1955]
[1751544819725,6.4751,154.39,154.37,44.72]
[1751544820628,6.4754,154.38,154.37,44.72]
[1751544821230,9.04134635,154.38,154.32,44.66]
[1751544821429,3.69055488,154.36,154.32,44.66]
[1751544821623,10.16795488,154.34,154.32,44.66]
[1751544821929,3.69055488,154.34,154.32,44.66]
[1751544822626,6.4775,154.33,154.32,44.66]
[1751544826128,6.4773,154.34,154.32,44.66]
[1751544827529,6.4775,154.33,154.32,44.66]
[1751544831132,10.16805488,154.33,154.32,44.66]
[1751544831320,15.49523508,154.33,154.32,44.66]
[1751544832735,15.49523508,154.33,154.32,39.25194154]
[1751544832932,6.4786,154.31,154.29,187.86]
[1751544833326,3.69055488,154.31,154.28,44.68]
[1751544833532,6.479,154.3,154.28,232.54]
[1751544833734,3.69055488,154.31,154.28,239.0195]
[1751544834131,5.32011366,154.34,154.28,232.54]
[1751544834333,3.69055488,154.35,154.31,6.4782]
[1751544834533,9.01084694,154.35,154.31,187.84]
[1751544835038,6.4774,154.34,154.31,187.84]
[1751544837241,6.4776,154.33,154.31,187.84]
[1751544837439,3.69055488,154.35,154.31,194.3183]
[1751544837641,8.99754108,154.35,154.31,194.3183]
[1751544838039,15.47434108,154.35,154.31,194.3183]
[1751544838239,5.3069862,154.34,154.31,194.3183]
[1751544838535,3.69055488,154.35,154.31,194.3183]
[1751544838742,8.99712337,154.35,154.31,194.3183]
[1751544838935,6.4772,154.34,154.31,187.84]
[1751544840544,6.4772,154.34,154.31,232.52]